fUST/lending_fUST_20250214
["ID","MTS","AMOUNT","RATE_DAILY","PERIOD"]
[353037115,1739506240934,-500.0,0.00013858,2]
[353037117,1739506240943,-500.0,0.00013858,2]
[353037119,1739506240952,-500.0,0.00013858,2]
[353037121,1739506240961,-504.74063605,0.00013858,2]
[353037123,1739506240971,-500.0,0.00013858,2]
[353037125,1739506240980,-500.0,0.00013858,2]
[353037127,1739506240990,-501.27919834,0.00013858,2]
[353037129,1739506240999,-501.00161776,0.00013858,2]
[353037131,1739506241008,-505.06077738,0.00013858,2]
[353037133,1739506241017,-157.76744425,0.00013858,2]
[353037134,1739506241027,-500.0,0.00013858,2]
[353037136,1739506241036,-500.0,0.00013858,2]
[353037138,1739506241044,-500.0,0.00013858,2]
[353037140,1739506241053,-500.0,0.00013858,2]
[353037142,1739506241062,-503.08832107,0.00013858,2]
[353037144,1739506241071,-500.0,0.00013858,2]
[353037146,1739506241081,-500.0,0.00013858,2]
[353037148,1739506241090,-500.0,0.00013858,2]
[353037150,1739506241099,-501.71373609,0.00013858,2]
[353037152,1739506241108,-500.0,0.00013858,2]
[353037154,1739506241118,-500.0,0.00013858,2]
[353037155,1739506241127,-500.0,0.00013858,2]
[353037158,1739506241137,-500.0,0.00013858,2]
[353037159,1739506241147,-503.02071668,0.00013858,2]
[353037161,1739506241157,-501.10439916,0.00013858,2]
[353037163,1739506241166,-500.0,0.00013858,2]
[353037165,1739506241176,-500.0,0.00013858,2]
[353037167,1739506241185,-500.0,0.00013858,2]
[353037169,1739506241195,-500.0,0.00013858,2]
[353037172,1739506241204,-501.9928747,0.00013858,2]
[353037173,1739506241214,-500.0,0.00013858,2]
[353037175,1739506241223,-500.0,0.00013858,2]
[353037177,1739506241233,-501.02329479,0.00013858,2]
[353037179,1739506241242,-500.0,0.00013858,2]
[353037181,1739506241252,-500.0,0.00013858,2]
[353037183,1739506241261,-500.0,0.00013858,2]
[353037185,1739506241270,-500.0,0.00013858,2]
[353037187,1739506241280,-500.0,0.00013858,2]
[353037189,1739506241290,-500.0,0.00013858,2]
[353037191,1739506241299,-500.0,0.00013858,2]
[353037193,1739506241309,-503.50793073,0.00013858,2]
[353037195,1739506241318,-503.89828001,0.00013858,2]
[353037197,1739506241328,-500.0,0.00013858,2]
[353037199,1739506241337,-500.0,0.00013858,2]
[353037201,1739506241347,-232.07013558,0.00013858,2]
[353037203,1739506241357,-502.12769052,0.00013858,2]
[353037206,1739506241367,-500.0,0.00013858,2]
[353037207,1739506241376,-500.0,0.00013858,2]
[353037210,1739506241387,-502.42053589,0.00013858,2]
[353037211,1739506241396,-500.0,0.00013858,2]
[353037213,1739506241405,-500.0,0.00013858,2]
[353037215,1739506241415,-500.0,0.00013858,2]
[353037217,1739506241424,-500.0,0.00013858,2]
[353037218,1739506241433,-500.0,0.00013858,2]
[353037220,1739506241442,-501.76842259,0.00013858,2]
[353037222,1739506241451,-500.0,0.00013858,2]
[353037224,1739506241461,-500.0,0.00013858,2]
[353037226,1739506241470,-504.15662806,0.00013858,2]
[353037228,1739506241479,-500.0,0.00013858,2]
[353037230,1739506241489,-500.0,0.00013858,2]
[353037232,1739506241498,-502.90476339,0.00013858,2]
[353037234,1739506241507,-503.49123211,0.00013858,2]
[353037236,1739506241516,-373.216291,0.00013858,2]
[353037238,1739506241526,-500.0,0.00013858,2]
[353037240,1739506241536,-500.0,0.00013858,2]
[353037241,1739506241544,-503.93185954,0.00013858,2]
[353037243,1739506241554,-500.0,0.00013858,2]
[353037245,1739506241563,-504.51035314,0.00013858,2]
[353037247,1739506241572,-600.64400475,0.00013858,2]
[353037249,1739506241582,-501.45423363,0.00013858,2]
[353037251,1739506241592,-503.26975791,0.00013858,2]
[353037253,1739506241601,-505.49442552,0.00013858,2]
[353037255,1739506241610,-503.34058286,0.00013858,2]
[353037257,1739506241621,-500.0,0.00013858,2]
[353037259,1739506241631,-503.90833814,0.00013858,2]
[353037261,1739506241641,-503.9392517,0.00013858,2]
[353037263,1739506241650,-503.83052297,0.00013858,2]
[353037265,1739506241660,-504.44310954,0.00013858,2]
[353037267,1739506241669,-502.64113547,0.00013858,2]
[353037269,1739506241678,-500.0,0.00013858,2]
[353037270,1739506241688,-500.0,0.00013858,2]
[353037271,1739506241697,-442.56445999,0.00013858,2]
[353037272,1739506241706,-502.70344585,0.00013858,2]
[353037273,1739506241716,-501.26941097,0.00013858,2]
[353037274,1739506241725,-509.81387919,0.00013858,2]
[353037275,1739506241734,-504.49076898,0.00013858,2]
[353037277,1739506241743,-501.80990277,0.00013858,2]
[353037278,1739506241751,-503.58700947,0.00013858,2]
[353037280,1739506241763,-500.0,0.00013858,2]
[353037283,1739506241773,-500.0,0.00013858,2]
[353037285,1739506241783,-500.0,0.00013858,2]
[353037286,1739506241792,-500.0,0.00013858,2]
[353037289,1739506241803,-500.0,0.00013858,2]
[353037290,1739506241812,-503.70163895,0.00013858,2]
[353037292,1739506241821,-500.22979174,0.00013858,2]
[353037294,1739506241831,-503.3527084,0.00013858,2]
[353037296,1739506241840,-503.34223926,0.00013858,2]
[353037298,1739506241851,-500.0,0.00013858,2]
[353037300,1739506241860,-500.0,0.00013858,2]
[353037302,1739506241869,-500.0,0.00013858,2]
[353037304,1739506241878,-500.0,0.00013858,2]
[353037305,1739506241887,-500.0,0.00013858,2]
[353037306,1739506241896,-506.10550754,0.00013858,2]
[353037307,1739506241906,-500.0,0.00013858,2]
[353037308,1739506241917,-500.0,0.00013859,2]
[353037309,1739506241926,-500.0,0.00013859,2]
[353037310,1739506241935,-500.0,0.00013859,2]
[353037311,1739506241945,-500.0,0.00013859,2]
[353037312,1739506241954,-500.0,0.00013859,2]
[353037313,1739506241963,-500.0,0.00013859,2]
[353037314,1739506241973,-500.0,0.00013859,2]
[353037315,1739506241982,-500.0,0.00013859,2]
[353037316,1739506241997,-628.51,0.00013859,2]
[353037317,1739506242010,-500.0,0.00013859,2]
[353037318,1739506242020,-442.6547718,0.00013859,2]
[353037319,1739506242032,-500.68198732,0.00013859,2]
[353037320,1739506242042,-500.0,0.00013859,2]
[353037321,1739506242052,-500.0,0.00013859,2]
[353037322,1739506242061,-500.0,0.00013859,2]
[353037323,1739506242070,-500.0,0.00013859,2]
[353037324,1739506242081,-500.0,0.00013859,2]
[353037325,1739506242091,-500.0,0.00013859,2]
[353037326,1739506242100,-500.0,0.00013859,2]
[353037327,1739506242110,-500.0,0.00013859,2]
[353037328,1739506242119,-203.27751335,0.00013859,2]
[353037329,1739506242128,-500.0,0.00013859,2]
[353037330,1739506242138,-500.0,0.00013859,2]
[353037331,1739506242148,-500.0,0.00013859,2]
[353037332,1739506242157,-500.0,0.00013859,2]
[353037333,1739506242167,-500.0,0.00013859,2]
[353037334,1739506242176,-500.0,0.00013859,2]
[353037335,1739506242185,-500.0,0.00013859,2]
[353037336,1739506242195,-500.0,0.00013859,2]
[353037337,1739506242204,-4611.59,0.00013859,2]
[353037338,1739506242214,-4611.59,0.00013859,2]
[353037339,1739506242223,-4611.59,0.00013859,2]
[353037340,1739506242233,-4611.59,0.00013859,2]
[353037341,1739506242243,-4611.59,0.00013859,2]
[353037342,1739506242253,-4611.59,0.00013859,2]
[353037343,1739506242264,-4611.59,0.00013859,2]
[353037344,1739506242273,-502.81041958,0.0001386,2]
[353037345,1739506242283,-504.57071062,0.0001386,2]
[353037346,1739506242292,-501.46075705,0.0001386,2]
[353037347,1739506242302,-500.0,0.0001386,2]
[353037348,1739506242311,-506.19572257,0.0001386,2]
[353037349,1739506242321,-500.0,0.0001386,2]
[353037350,1739506242331,-501.28990789,0.0001386,2]
[353037351,1739506242340,-500.0,0.0001386,2]
[353037352,1739506242350,-324.99941487,0.0001386,2]
[353037353,1739506242360,-502.83772679,0.0001386,2]
[353037354,1739506242370,-500.68043344,0.0001386,2]
[353037355,1739506242379,-501.57911726,0.0001386,2]
[353037356,1739506242388,-500.0,0.0001386,2]
[353037357,1739506242398,-500.0,0.0001386,2]
[353037358,1739506242409,-500.0,0.0001386,2]
[353037359,1739506242418,-500.0,0.0001386,2]
[353037360,1739506242427,-500.0,0.0001386,2]
[353037361,1739506242438,-500.0,0.0001386,2]
[353037362,1739506242447,-500.0,0.0001386,2]
[353037363,1739506242458,-376.75215303,0.0001386,2]
[353037364,1739506242468,-500.0,0.0001386,2]
[353037365,1739506242477,-500.0,0.0001386,2]
[353037366,1739506242486,-500.0,0.0001386,2]
[353037367,1739506242495,-501.77182401,0.0001386,2]
[353037368,1739506242505,-501.68966711,0.0001386,2]
[353037369,1739506242514,-500.0,0.0001386,2]
[353037370,1739506242523,-502.43684123,0.0001386,2]
[353037371,1739506242533,-500.74955732,0.0001386,2]
[353037372,1739506242543,-501.2999824,0.0001386,2]
[353037373,1739506242552,-502.57363426,0.0001386,2]
[353037374,1739506242561,-500.0,0.0001386,2]
[353037375,1739506242570,-500.0,0.0001386,2]
[353037376,1739506242579,-500.0,0.0001386,2]
[353037377,1739506242589,-502.74409818,0.0001386,2]
[353037378,1739506242598,-500.0,0.0001386,2]
[353037379,1739506242608,-500.0,0.0001386,2]
[353037380,1739506242617,-505.80690571,0.0001386,2]
[353037381,1739506242627,-500.0,0.0001386,2]
[353037382,1739506242636,-163.44243412,0.0001386,2]
[353037384,1739506242646,-508.17913529,0.0001386,2]
[353037385,1739506242655,-501.77370755,0.0001386,2]
[353037386,1739506242665,-500.0,0.0001386,2]
[353037387,1739506242675,-500.0,0.0001386,2]
[353037388,1739506242684,-500.0,0.0001386,2]
[353037389,1739506242695,-500.0,0.0001386,2]
[353037390,1739506242704,-241.24967432,0.0001386,2]
[353037391,1739506242714,-501.89938828,0.0001386,2]
[353037392,1739506242723,-500.0,0.0001386,2]
[353037393,1739506242733,-500.0,0.0001386,2]
[353037394,1739506242742,-605.72072481,0.0001386,2]
[353037395,1739506242753,-500.0,0.0001386,2]
[353037396,1739506242765,-516.50234391,0.0001386,2]
[353037397,1739506242775,-500.0,0.0001386,2]
[353037398,1739506242785,-500.0,0.0001386,2]
[353037399,1739506242795,-500.0,0.0001386,2]
[353037400,1739506242804,-500.0,0.0001386,2]
[353037401,1739506242814,-500.0,0.0001386,2]
[353037402,1739506242823,-500.0,0.0001386,2]
[353037403,1739506242833,-502.18607029,0.0001386,2]
[353037404,1739506242844,-500.0,0.0001386,2]
[353037405,1739506242855,-500.0,0.0001386,2]
[353037406,1739506242864,-500.0,0.0001386,2]
[353037407,1739506242873,-503.78754432,0.0001386,2]
[353037408,1739506242882,-500.0,0.0001386,2]
[353037409,1739506242892,-501.8535876,0.0001386,2]
[353037410,1739506242901,-503.34875844,0.0001386,2]
[353037411,1739506242911,-501.74013933,0.0001386,2]
[353037412,1739506242920,-500.0,0.0001386,2]
[353037413,1739506242929,-501.21531684,0.0001386,2]
[353037414,1739506242939,-511.91622594,0.0001386,2]
[353037415,1739506242948,-501.13956555,0.0001386,2]
[353037416,1739506242957,-501.05117217,0.0001386,2]
[353037417,1739506242967,-500.0,0.0001386,2]
[353037418,1739506242976,-500.0,0.0001386,2]
[353037419,1739506242986,-500.0,0.0001386,2]
[353037420,1739506242995,-503.45658692,0.0001386,2]
[353037421,1739506243008,-500.0,0.0001386,2]
[353037422,1739506243018,-500.44318668,0.0001386,2]
[353037423,1739506243028,-500.0,0.0001386,2]
[353037424,1739506243039,-615.44603222,0.0001386,2]
[353037425,1739506243052,-501.22133031,0.0001386,2]
[353037426,1739506243062,-566.26956109,0.0001386,2]
[353037427,1739506243072,-350.67665639,0.0001386,2]
[353037428,1739506243082,-500.0,0.0001386,2]
[353037429,1739506243091,-500.0,0.0001386,2]
[353037430,1739506243101,-500.0,0.0001386,2]
[353037431,1739506243111,-500.0,0.0001386,2]
[353037432,1739506243120,-500.81485506,0.0001386,2]
[353037433,1739506243130,-500.0,0.0001386,2]
[353037434,1739506243241,-501.56649725,0.0001386,2]
[353037435,1739506243251,-500.98714355,0.0001386,2]
[353037436,1739506243261,-500.0,0.0001386,2]
[353037437,1739506243271,-298.05208723,0.0001386,2]
[353037438,1739506243280,-500.99320311,0.0001386,2]
[353037439,1739506243290,-500.0,0.0001386,2]
[353037440,1739506243300,-500.0,0.0001386,2]
[353037441,1739506243311,-501.48879102,0.0001386,2]
[353037442,1739506243321,-561.45263906,0.0001386,2]
[353037443,1739506243331,-501.84911511,0.0001386,2]
[353037444,1739506243341,-500.0,0.0001386,2]
[353037446,1739506243350,-502.95996963,0.0001386,2]
[353037447,1739506243359,-504.42523209,0.0001386,2]
[353037449,1739506243369,-502.14692699,0.0001386,2]
[353037452,1739506243379,-501.89441168,0.0001386,2]
[353037455,1739506243388,-505.8652231,0.0001386,2]
[353037457,1739506243397,-489.72255846,0.0001386,2]
[353037459,1739506243407,-500.0,0.0001386,2]
[353037461,1739506243417,-500.0,0.0001386,2]
[353037463,1739506243427,-500.0,0.0001386,2]
[353037465,1739506243436,-507.25283716,0.0001386,2]
[353037467,1739506243445,-500.0,0.0001386,2]
[353037468,1739506243454,-500.0,0.0001386,2]
[353037469,1739506243463,-505.62645514,0.0001386,2]
[353037470,1739506243473,-503.29641154,0.0001386,2]
[353037471,1739506243483,-500.0,0.0001386,2]
[353037472,1739506243492,-500.0,0.00013861,2]
[353037473,1739506243502,-407.46798055,0.00013861,2]
[353037474,1739506243511,-501.4428217,0.00013861,2]
[353037475,1739506243520,-501.42280111,0.00013861,2]
[353037476,1739506243530,-383.02853692,0.00013861,2]
[353037477,1739506243539,-501.78336757,0.00013861,2]
[353037478,1739506243549,-498.70071267,0.00013861,2]
[353037479,1739506243559,-502.57618077,0.00013861,2]
[353037480,1739506243569,-503.82662812,0.00013861,2]
[353037481,1739506243579,-500.0,0.00013873,2]
[353037482,1739506243588,-500.0,0.00013873,2]
[353037483,1739506243598,-500.0,0.00013873,2]
[353037484,1739506243607,-500.0,0.00013873,2]
[353037485,1739506243617,-500.6065034,0.00013873,2]
[353037486,1739506243627,-500.0,0.00013873,2]
[353037487,1739506243636,-4253.31203411,0.00013935,2]
[353037488,1739506243646,-500.0,0.00013938,2]
[353037489,1739506243655,-500.0,0.00013938,2]
[353037490,1739506243665,-786.14,0.00013938,2]
[353037491,1739506243676,-500.0,0.00013938,2]
[353037492,1739506243686,-500.0,0.00013939,2]
[353037493,1739506243695,-500.0,0.00013939,2]
[353037494,1739506243705,-4611.59,0.00013939,2]
[353037495,1739506243715,-4611.59,0.00013939,2]
[353037496,1739506243724,-507.20029289,0.0001394,2]
[353037497,1739506243734,-500.0,0.0001394,2]
[353037498,1739506243744,-503.47737774,0.0001394,2]
[353037499,1739506243753,-583.38473543,0.0001394,2]
[353037500,1739506243767,-500.0,0.0001394,2]
[353037501,1739506243776,-536.38930715,0.0001394,2]
[353037502,1739506243786,-500.0,0.0001394,2]
[353037503,1739506243795,-500.0,0.0001394,2]
[353037504,1739506243806,-510.36192211,0.0001394,2]
[353037505,1739506243815,-520.21459942,0.0001394,2]
[353037506,1739506243825,-500.0,0.0001394,2]
[353037507,1739506243835,-500.0,0.0001394,2]
[353037508,1739506243846,-590.75,0.0001394,2]
[353037509,1739506243856,-500.0,0.0001394,2]
[353037510,1739506243866,-500.0,0.0001394,2]
[353037511,1739506243877,-503.03256543,0.0001394,2]
[353037512,1739506243887,-500.0,0.0001394,2]
[353037513,1739506243896,-500.0,0.0001394,2]
[353037514,1739506243906,-500.0,0.0001394,2]
[353037515,1739506243916,-500.0,0.0001394,2]
[353037516,1739506243927,-500.0,0.0001394,2]
[353037517,1739506243936,-500.0,0.0001394,2]
[353037518,1739506243946,-500.0,0.0001394,2]
[353037519,1739506243955,-182.08696166,0.0001394,2]
[353037520,1739506243965,-500.0,0.0001394,2]
[353037521,1739506243974,-500.0,0.0001394,2]
[353037522,1739506243983,-500.0,0.0001394,2]
[353037523,1739506243993,-500.0,0.0001394,2]
[353037524,1739506244003,-500.0,0.0001394,2]
[353037525,1739506244012,-501.19309051,0.0001394,2]
[353037526,1739506244022,-500.0,0.0001394,2]
[353037527,1739506244032,-500.0,0.0001394,2]
[353037528,1739506244042,-500.0,0.0001394,2]
[353037529,1739506244051,-500.0,0.0001394,2]
[353037530,1739506244061,-500.0,0.0001394,2]
[353037531,1739506244071,-500.0,0.0001394,2]
[353037532,1739506244080,-500.0,0.0001394,2]
[353037533,1739506244090,-504.5101064,0.0001394,2]
[353037534,1739506244100,-500.0,0.0001394,2]
[353037535,1739506244109,-500.0,0.0001394,2]
[353037536,1739506244119,-509.4062046,0.0001394,2]
[353037537,1739506244128,-500.0,0.0001394,2]
[353037538,1739506244138,-500.0,0.0001394,2]
[353037539,1739506244148,-504.54755658,0.0001394,2]
[353037540,1739506244157,-490.0,0.0001394,2]
[353037541,1739506244167,-500.0,0.0001394,2]
[353037542,1739506244177,-436.921988,0.0001394,2]
[353037543,1739506244187,-500.0,0.0001394,2]
[353037544,1739506244197,-504.07738757,0.0001394,2]
[353037545,1739506244207,-500.0,0.0001394,2]
[353037546,1739506244218,-502.61298474,0.0001394,2]
[353037547,1739506244227,-561.99014625,0.0001394,2]
[353037548,1739506244237,-502.65066515,0.0001394,2]
[353037549,1739506244247,-500.0,0.0001394,2]
[353037550,1739506244256,-500.0,0.0001394,2]
[353037551,1739506244266,-500.0,0.0001394,2]
[353037552,1739506244276,-500.0,0.0001394,2]
[353037553,1739506244286,-503.20914958,0.0001394,2]
[353037554,1739506244295,-504.64780341,0.0001394,2]
[353037555,1739506244306,-502.33325102,0.0001394,2]
[353037556,1739506244315,-500.0,0.0001394,2]
[353037557,1739506244324,-500.0,0.0001394,2]
[353037558,1739506244334,-500.0,0.0001394,2]
[353037559,1739506244343,-500.0,0.0001394,2]
[353037560,1739506244352,-500.0,0.0001394,2]
[353037561,1739506244362,-501.4546822,0.0001394,2]
[353037562,1739506244371,-502.82199083,0.0001394,2]
[353037563,1739506244381,-500.0,0.0001394,2]
[353037564,1739506244391,-500.0,0.0001394,2]
[353037565,1739506244400,-500.0,0.0001394,2]
[353037566,1739506244411,-505.831445,0.0001394,2]
[353037567,1739506244420,-500.0,0.0001394,2]
[353037568,1739506244430,-4611.59,0.0001394,2]
[353037569,1739506244440,-500.0,0.0001394,2]
[353037570,1739506244449,-510.06197263,0.0001394,2]
[353037571,1739506244459,-500.0,0.0001394,2]
[353037572,1739506244469,-504.60512762,0.0001394,2]
[353037573,1739506244478,-500.0,0.0001394,2]
[353037574,1739506244487,-513.56728742,0.0001394,2]
[353037575,1739506244497,-624.90295096,0.0001394,2]
[353037576,1739506244506,-500.0,0.0001394,2]
[353037577,1739506244515,-502.41242564,0.0001394,2]
[353037578,1739506244525,-503.50340167,0.0001394,2]
[353037579,1739506244535,-502.72494614,0.0001394,2]
[353037580,1739506244544,-642.29,0.0001394,2]
[353037581,1739506244554,-503.78936764,0.0001394,2]
[353037582,1739506244563,-504.77482639,0.0001394,2]
[353037583,1739506244573,-503.50275264,0.0001394,2]
[353037584,1739506244582,-500.0,0.0001394,2]
[353037585,1739506244591,-500.0,0.0001394,2]
[353037586,1739506244601,-500.0,0.0001394,2]
[353037587,1739506244611,-501.38466285,0.0001394,2]
[353037588,1739506244620,-500.0,0.0001394,2]
[353037589,1739506244630,-472.20702433,0.0001394,2]
[353037590,1739506244640,-506.07149873,0.0001394,2]
[353037591,1739506244649,-512.57850017,0.0001394,2]
[353037592,1739506244659,-503.74276911,0.0001394,2]
[353037593,1739506244668,-500.0,0.0001394,2]
[353037594,1739506244678,-508.76732381,0.0001394,2]
[353037595,1739506244687,-502.77730454,0.0001394,2]
[353037596,1739506244696,-500.0,0.0001394,2]
[353037597,1739506244705,-500.0,0.0001394,2]
[353037598,1739506244714,-502.21151534,0.0001394,2]
[353037599,1739506244724,-500.0,0.0001394,2]
[353037600,1739506244733,-502.9583299,0.0001394,2]
[353037601,1739506244743,-500.0,0.0001394,2]
[353037602,1739506244752,-502.24315677,0.0001394,2]
[353037603,1739506244765,-502.5523824,0.0001394,2]
[353037604,1739506244774,-500.0,0.0001394,2]
[353037605,1739506244784,-500.0,0.0001394,2]
[353037606,1739506244795,-500.0,0.0001394,2]
[353037607,1739506244805,-502.12792052,0.0001394,2]
[353037608,1739506244815,-500.0,0.0001394,2]
[353037609,1739506244824,-500.0,0.0001394,2]
[353037610,1739506244834,-500.0,0.0001394,2]
[353037611,1739506244847,-500.0,0.0001394,2]
[353037612,1739506244856,-500.92457766,0.0001394,2]
[353037613,1739506244866,-500.0,0.0001394,2]
[353037614,1739506244875,-500.0,0.0001394,2]
[353037615,1739506244885,-500.0,0.0001394,2]
[353037616,1739506244894,-500.0,0.0001394,2]
[353037617,1739506244904,-504.4238061,0.0001394,2]
[353037618,1739506244914,-501.83155023,0.0001394,2]
[353037619,1739506244924,-500.0,0.0001394,2]
[353037620,1739506244933,-504.75426987,0.0001394,2]
[353037621,1739506244943,-500.0,0.0001394,2]
[353037622,1739506244952,-500.0,0.0001394,2]
[353037623,1739506244961,-502.95848377,0.0001394,2]
[353037624,1739506244970,-580.03097848,0.0001394,2]
[353037625,1739506244979,-410.46892744,0.0001394,2]
[353037626,1739506244990,-377.81584853,0.0001394,2]
[353037627,1739506245000,-500.0,0.0001394,2]
[353037628,1739506245010,-500.0,0.0001394,2]
[353037629,1739506245020,-502.92382381,0.0001394,2]
[353037630,1739506245030,-2015.39,0.0001394,2]
[353037631,1739506245040,-501.65217109,0.0001394,2]
[353037632,1739506245050,-602.19083257,0.0001394,2]
[353037633,1739506245059,-500.0,0.0001394,2]
[353037634,1739506245070,-500.0,0.0001394,2]
[353037635,1739506245080,-493.0,0.0001394,2]
[353037636,1739506245090,-500.0,0.0001394,2]
[353037637,1739506245100,-331.44418723,0.0001394,2]
[353037638,1739506245109,-3384.37,0.0001394,2]
[353037639,1739506245119,-500.0,0.0001394,2]
[353037640,1739506245129,-500.0,0.0001394,2]
[353037641,1739506245139,-500.0,0.0001394,2]
[353037642,1739506245148,-500.0,0.0001394,2]
[353037643,1739506245157,-483.38278331,0.0001394,2]
[353037644,1739506245167,-500.0,0.0001394,2]
[353037645,1739506245177,-153.85988802,0.0001394,2]
[353037646,1739506245187,-500.0,0.0001394,2]
[353037647,1739506245196,-500.0,0.0001394,2]
[353037648,1739506245206,-500.0,0.0001394,2]
[353037649,1739506245216,-500.0,0.0001394,2]
[353037650,1739506245226,-969.31,0.0001394,2]
[353037651,1739506245236,-500.0,0.0001394,2]
[353037652,1739506245246,-500.0,0.0001394,2]
[353037653,1739506245256,-500.0,0.0001394,2]
[353037654,1739506245266,-500.0,0.00013941,2]
[353037655,1739506245275,-500.0,0.00013941,2]
[353037656,1739506245285,-500.0,0.00013941,2]
[353037657,1739506245294,-500.0,0.00013941,2]
[353037658,1739506245304,-500.0,0.00013941,2]
[353037659,1739506245313,-500.0,0.00013941,2]
[353037660,1739506245323,-500.0,0.00013941,2]
[353037661,1739506245332,-500.0,0.00013941,2]
[353037662,1739506245343,-500.0,0.00013941,2]
[353037663,1739506245352,-500.0,0.00013941,2]
[353037664,1739506245362,-500.0,0.00013941,2]
[353037665,1739506245372,-500.0,0.00013941,2]
[353037666,1739506245383,-4611.59,0.00013941,2]
[353037667,1739506245393,-500.0,0.00013942,2]
[353037668,1739506245403,-500.0,0.00013942,2]
[353037669,1739506245412,-500.0,0.00013942,2]
[353037670,1739506245422,-500.0,0.00013942,2]
[353037671,1739506245432,-4611.59,0.00013942,2]
[353037672,1739506245441,-4611.59,0.00013942,2]
[353037673,1739506245450,-4611.59,0.00013942,2]
[353037674,1739506245459,-4611.59,0.00013942,2]
[353037675,1739506245470,-4611.59,0.00013942,2]
[353037676,1739506245480,-4611.82510126,0.00013942,2]
[353037677,1739506245491,-509.54046453,0.00013943,2]
[353037678,1739506245500,-501.57129286,0.00013943,2]
[353037679,1739506245510,-500.0,0.00013943,2]
[353037680,1739506245519,-506.93694251,0.00013943,2]
[353037681,1739506245529,-501.81168651,0.00013943,2]
[353037682,1739506245539,-503.43633386,0.00013943,2]
[353037683,1739506245548,-503.82539058,0.00013943,2]
[353037684,1739506245559,-502.6199509,0.00013943,2]
[353037686,1739506245569,-506.22633298,0.00013943,2]
[353037688,1739506245579,-503.63562163,0.00013943,2]
[353037689,1739506245590,-507.6354886,0.00013943,2]
[353037690,1739506245600,-503.46388088,0.00013943,2]
[353037691,1739506245609,-500.0,0.00013943,2]
[353037693,1739506245619,-500.0,0.00013943,2]
[353037694,1739506245629,-500.0,0.00013943,2]
[353037695,1739506245639,-258.91181297,0.00013943,2]
[353037696,1739506245738,-500.0,0.00013943,2]
[353037697,1739506245748,-500.0,0.00013943,2]
[353037698,1739506245760,-500.0,0.00013943,2]
[353037699,1739506245773,-500.0,0.00013943,2]
[353037700,1739506245782,-502.83770447,0.00013943,2]
[353037701,1739506245792,-502.9853041,0.00013943,2]
[353037702,1739506245804,-500.0,0.00013943,2]
[353037703,1739506245814,-500.0,0.00013943,2]
[353037704,1739506245824,-500.0,0.00013943,2]
[353037706,1739506245833,-500.0,0.00013943,2]
[353037708,1739506245844,-503.40313587,0.00013943,2]
[353037709,1739506245854,-500.0,0.00013943,2]
[353037710,1739506245864,-502.83875369,0.00013943,2]
[353037711,1739506245874,-506.92367832,0.00013943,2]
[353037712,1739506245883,-210.25468317,0.00013943,2]
[353037713,1739506245896,-500.0,0.00013943,2]
[353037714,1739506245911,-500.0,0.00013943,2]
[353037715,1739506245922,-500.0,0.00013943,2]
[353037717,1739506245932,-500.0,0.00013943,2]
[353037719,1739506245943,-503.49724107,0.00013943,2]
[353037720,1739506245952,-500.0,0.00013943,2]
[353037722,1739506245963,-502.91786512,0.00013943,2]
[353037723,1739506245974,-500.0,0.00013943,2]
[353037725,1739506245984,-500.0,0.00013943,2]